[Event "Pashayeva Memorial Rapid 2025"]
[Site "Baku"]
[Date "2025.03.02"]
[Round "2.4"]
[White "Mamedjarova, Turkan"]
[Black "Serikbay, Assel"]
[Result "1-0"]
[Annotator "TA"]
[ECO "B22"]
[WhiteElo "2197"]
[BlackElo "2216"]
[PlyCount "57"]
[EventDate "2025.03.01"]
[EventType "tourn"]
[EventCountry "AZE"]
[SourceTitle "playchess.com"]
[Source "ChessBase"]
[SourceQuality "1"]
[TimeControl "900+10"]

{[%evp 16,57,-12,-14,0,-10,-6,-35,0,0,-6,-20,-18,-25,-16,-15,10,-31,41,-45,15,4,85,66,168,143,539,327,390,379,531,551,727,719,730,639,736,736,29990,430,29991,29992,29994,29995]} 1. e4 {[%emt 0:00:10][%cal Be2e4,Be4e5][%mdl 32]} c5 {[%emt 0:00:10]} 2. c3 {[%emt 0:00:10]} Nf6 {[%emt 0:00:10]} 3. e5 {[%emt 0:00:10]} Nd5 {[%emt 0:00:10]} 4. d4 {[%emt 0:00:10]} cxd4 {[%emt 0:00:10]} 5. Nf3 {[%emt 0:00:10]} Nc6 {[%emt 0:00:10]} 6. cxd4 {[%emt 0:00:10]} d6 {[%emt 0:00:10]} 7. exd6 {[%emt 0:00:10]} Qxd6 {[%emt 0:00:10] 7...e6 is more fashionable.} 8. Nc3 {[%emt 0:00:10]} Bg4 {[%emt 0:00:10]} 9. Be2 {[%emt 0:00:10]} g6 {[%emt 0:00:10] B22: Sicilian: 2 c3.} (9... Bxf3 10. Bxf3 e6 11. Nxd5 exd5 12. O-O $14) 10. O-O {[%emt 0:00:10]} Bg7 {[%emt 0:01:09]} 11. h3 {[%emt 0:00:40]} Bf5 {[%emt 0:00:10] Black is slightly better.} 12. Bc4 $146 {[%emt 0:00:10]} ({Predecessor:} 12. Be3 O-O 13. Qb3 Nb6 14. d5 Nb4 15. Bxb6 Qxb6 16. a3 Nc2 17. Qxb6 axb6 18. Rac1 Bxc3 19. bxc3 Rxa3 {0-1 Floresvillar Gonzalez,L (2019)-Huang,Y (2071) Titled Tuesday intern op 25th Jul Late blitz 2023 (4)}) 12... Nb6 {[%emt 0:00:10][%csl LRc4,LRd4]} 13. Bb5 {[%emt 0:00:10] [#]} O-O {[%emt 0:00:10]} 14. Bxc6 {[%emt 0:00:10]} Qxc6 {[%emt 0:01:47]} 15. Re1 {[%emt 0:02:09]} Rfd8 {[%emt 0:03:38]} 16. Bf4 {[%emt 0:02:38]} Nc4 {[%emt 0:01:41]} (16... Be6 $15) 17. Qe2 {[%emt 0:02:29]} (17. Rxe7 $14 Rac8 18. Qb3) 17... Rac8 {[%emt 0:00:10]} (17... Bxd4 $15 18. Nxd4 Rxd4) 18. Rac1 $11 {[%emt 0:00:21]} Qa6 {[%emt 0:02:07]} (18... Qd7 $11) 19. Qxe7 $16 {[%emt 0:00:23]} (19. b3 Na5 $14) 19... Be6 {[%emt 0:01:52]} (19... Nxb2 20. Nd5 Nc4 (20... Rxd5 21. Rxc8+ Bxc8 22. Qe8+ Bf8 23. Qxf8+ Kxf8 24. Bh6+ Kg8 25. Re8#) 21. Ne5 Bxe5 (21... Rxd5 $2 22. Qxf7+ Kh8 23. Qxd5 $18) (21... Nxe5 $2 22. Rxc8 Rxc8 23. Bxe5 $18) 22. Rxe5 Nxe5 23. Nf6+ $18) (19... h6 $14) 20. Qh4 {[%emt 0:00:54] Black must now prevent Ng5.} Bf8 $2 {[%emt 0:01:15][%mdl 8192] This costs Black the game.} (20... f6 $16 {is tougher.}) 21. d5 {[%emt 0:00:19]} Bf5 {[%emt 0:00:56]} 22. d6 {[%emt 0:01:13]} Nxd6 {[%emt 0:01:24] Black is weak on the dark squares} (22... Bxd6 $142 23. Nd5 Bxf4) 23. Nd5 $18 {[%emt 0:00:17]} Ne4 {[%emt 0:00:23] Wards off Nf6+} 24. Rxc8 {[%emt 0:00:07]} Rxc8 {[%emt 0:00:04] [#]} 25. Rxe4 $1 {[%emt 0:00:05]} Bxe4 {[%emt 0:00:25]} 26. Nf6+ {[%emt 0:00:10] A dynamic duo of knights.} Kg7 {[%emt 0:00:01]} 27. Bh6+ {[%emt 0:01:45]} Kh8 {[%emt 0:00:03] Strongly threatening ...Bxf3.} 28. Bxf8 {[%emt 0:00:04][%csl Gf6][%cal Rh4h7]} ({Not} 28. Nxe4 Bxh6 29. Qxh6 f6 $18) 28... g5 {[%emt 0:00:35]} 29. Qh6 {[%emt 0:00:09] Weighted Error Value: White=0.23 (precise) /Black=1.10  Loses game:     	---       	Black=1      Mistake:       	White=1     	Black=5      Inaccurate:     	White=3     	Black=2      OK:         	White=6     	Black=4      Best:        	White=2     	---} 1-0

[Event "Pashayeva Memorial Rapid 2025"]
[Site "Baku"]
[Date "2025.03.02"]
[Round "2.5"]
[White "Balajayeva, Khanim"]
[Black "Mammadova, Gulnar"]
[Result "1/2-1/2"]
[Annotator "TA"]
[ECO "C54"]
[WhiteElo "2355"]
[BlackElo "2333"]
[PlyCount "30"]
[EventDate "2025.03.01"]
[EventType "tourn"]
[EventCountry "AZE"]
[SourceTitle "playchess.com"]
[Source "ChessBase"]
[SourceQuality "1"]
[TimeControl "900+10"]

{[%evp 10,30,19,18,22,18,15,0,5,0,9,0,3,2,2,6,-6,-14,12,10,10,0,8]} 1. e4 {[%emt 0:00:01]} e5 {[%emt 0:00:04]} 2. Nf3 {[%emt 0:00:01]} Nc6 {[%emt 0:00:04]} 3. Bc4 {[%emt 0:00:09]} Nf6 {[%emt 0:00:19]} 4. d3 {[%emt 0:00:05]} Bc5 {[%emt 0:00:17]} 5. c3 {[%emt 0:00:18]} d6 {[%emt 0:00:39]} 6. O-O {[%emt 0:00:11] The position is equal.} a5 {[%emt 0:00:15] C54: Giuoco Piano: 4 c3 Nf6, main lines with 5 d4 and 5 d3.} 7. Nbd2 {[%emt 0:01:13][%cal Bb1d2,Bd2f1,Bf1g3][%mdl 32]} O-O {[%emt 0:01:06]} 8. Bb3 {[%emt 0:00:09]} h6 {[%emt 0:00:25]} 9. h3 {[%emt 0:00:25]} Be6 {[%emt 0:01:00]} 10. Re1 {[%emt 0:00:36]} Re8 {[%emt 0:00:53]} 11. Bxe6 {[%emt 0:00:12]} Rxe6 {[%emt 0:00:51]} 12. Nf1 {[%emt 0:00:48]} d5 {[%emt 0:01:43]} 13. Qe2 $146 {[%emt 0:01:39]} ({Predecessor:} 13. Qc2 Qd7 14. Ng3 a4 15. Bd2 b5 16. b4 Bf8 17. a3 g6 18. exd5 Nxd5 19. c4 bxc4 20. dxc4 {0-1 Aravindh,C (2641)-Maghsoodloo,P (2676) Titled Tuesday intern op 12th May blitz 2020 (9)}) 13... d4 {[%emt 0:01:23]} 14. Ng3 {[%emt 0:01:22]} a4 {[%emt 0:00:16]} 15. a3 {[%emt 0:01:52]} Na5 {[%emt 0:00:52] A rather calm draw.   Weighted Error Value: White=0.04 (flawless) /Black=0.05 (flawless)   Inaccurate:     	---       	Black=1      OK:         	White=3     	Black=2} 1/2-1/2

[Event "Pashayeva Memorial Rapid 2025"]
[Site "Baku"]
[Date "2025.03.02"]
[Round "3.1"]
[White "Mammadova, Gulnar"]
[Black "Salimova, Nurgyul"]
[Result "1-0"]
[Annotator "ChessBase"]
[ECO "B12"]
[WhiteElo "2333"]
[BlackElo "2404"]
[PlyCount "79"]
[EventDate "2025.03.01"]
[EventType "tourn"]
[EventCountry "AZE"]
[SourceTitle "playchess.com"]
[Source "ChessBase"]
[SourceQuality "1"]
[TimeControl "900+10"]

1. e4 {[%emt 0:00:10]} c6 {[%emt 0:00:03]} 2. d4 {[%emt 0:00:00]} d5 {[%emt 0:00:04]} 3. e5 {[%emt 0:00:00]} c5 {[%emt 0:00:02]} 4. dxc5 {[%emt 0:00:00]} e6 {[%emt 0:00:18]} 5. a3 {[%emt 0:00:19]} Bxc5 {[%emt 0:01:14]} 6. b4 {[%emt 0:00:02]} Bb6 {[%emt 0:00:16]} 7. Qg4 {[%emt 0:00:08]} Ne7 {[%emt 0:00:56]} 8. Bb2 {[%emt 0:00:08]} Ng6 {[%emt 0:00:52]} 9. Bd3 {[%emt 0:00:24]} Nc6 {[%emt 0:04:25]} 10. Nf3 {[%emt 0:00:22]} Bc7 {[%emt 0:00:54]} 11. O-O {[%emt 0:01:14]} Kf8 {[%emt 0:00:49]} 12. Re1 {[%emt 0:00:53]} Nce7 {[%emt 0:03:30]} 13. Nbd2 {[%emt 0:04:12]} Nf5 {[%emt 0:00:26]} 14. b5 {[%emt 0:00:41]} Ba5 {[%emt 0:00:47]} 15. Red1 {[%emt 0:00:52]} h5 {[%emt 0:00:25]} 16. Qa4 {[%emt 0:00:02]} Bd7 {[%emt 0:01:38]} 17. Nb3 {[%emt 0:00:35]} Bb6 {[%emt 0:00:04]} 18. Bxf5 {[%emt 0:01:12]} exf5 {[%emt 0:00:02]} 19. Rxd5 {[%emt 0:00:01]} Qe7 {[%emt 0:00:26]} 20. Bd4 {[%emt 0:00:31]} Rc8 {[%emt 0:00:36]} 21. Bxb6 {[%emt 0:00:53]} axb6 {[%emt 0:00:02]} 22. Nbd4 {[%emt 0:00:01]} Kg8 {[%emt 0:00:25]} 23. Re1 {[%emt 0:00:35]} Nf8 {[%emt 0:00:10]} 24. Rd6 {[%emt 0:00:20]} Be6 {[%emt 0:00:29]} 25. Qb4 {[%emt 0:00:40]} Rh6 {[%emt 0:00:08]} 26. Rxb6 {[%emt 0:00:33]} Qc7 {[%emt 0:00:01]} 27. Rd6 {[%emt 0:00:17]} Rg6 {[%emt 0:00:01]} 28. b6 {[%emt 0:00:16]} Qe7 {[%emt 0:00:02]} 29. Rd1 {[%emt 0:00:54]} Rc4 {[%emt 0:00:19]} 30. Qb5 {[%emt 0:00:36]} Rc3 {[%emt 0:00:01]} 31. Qa5 {[%emt 0:01:01]} Rc8 {[%emt 0:00:15]} 32. Qd2 {[%emt 0:00:26]} Ra8 {[%emt 0:00:26]} 33. Qe3 {[%emt 0:00:13]} Rg4 {[%emt 0:00:10]} 34. h3 {[%emt 0:00:24]} Re4 {[%emt 0:00:01]} 35. Qd3 {[%emt 0:00:30]} Rxe5 {[%emt 0:00:15]} 36. Nc6 {[%emt 0:00:20]} bxc6 {[%emt 0:00:15]} 37. Nxe5 {[%emt 0:00:01]} Bd5 {[%emt 0:00:05]} 38. Rxd5 {[%emt 0:00:17]} cxd5 {[%emt 0:00:09]} 39. Qxd5 {[%emt 0:00:06]} Ra6 {[%emt 0:00:24]} 40. Rb1 {[%emt 0:00:27]} 1-0

[Event "Pashayeva Memorial Rapid 2025"]
[Site "Baku"]
[Date "2025.03.02"]
[Round "3.2"]
[White "Serikbay, Assel"]
[Black "Balajayeva, Khanim"]
[Result "0-1"]
[Annotator "ChessBase"]
[ECO "D40"]
[WhiteElo "2216"]
[BlackElo "2355"]
[PlyCount "100"]
[EventDate "2025.03.01"]
[EventType "tourn"]
[EventCountry "AZE"]
[SourceTitle "playchess.com"]
[Source "ChessBase"]
[SourceQuality "1"]
[TimeControl "900+10"]

1. d4 {[%emt 0:00:03]} Nf6 {[%emt 0:00:02]} 2. c4 {[%emt 0:00:01]} e6 {[%emt 0:00:01]} 3. Nf3 {[%emt 0:00:05]} d5 {[%emt 0:00:02]} 4. Nc3 {[%emt 0:00:02]} Be7 {[%emt 0:00:03]} 5. Bf4 {[%emt 0:00:05]} O-O {[%emt 0:00:04]} 6. e3 {[%emt 0:00:02]} Nbd7 {[%emt 0:00:02]} 7. Bd3 {[%emt 0:00:08]} dxc4 {[%emt 0:00:24]} 8. Bxc4 {[%emt 0:00:02]} a6 {[%emt 0:01:45]} 9. a4 {[%emt 0:00:50]} c5 {[%emt 0:00:04]} 10. O-O {[%emt 0:00:21]} cxd4 {[%emt 0:02:50]} 11. exd4 {[%emt 0:00:11]} Nb6 {[%emt 0:00:18]} 12. Bb3 {[%emt 0:00:55]} Nbd5 {[%emt 0:00:13]} 13. Bg3 {[%emt 0:00:04]} b6 {[%emt 0:00:07]} 14. Qe2 {[%emt 0:00:51]} Bb7 {[%emt 0:00:06]} 15. Rac1 {[%emt 0:00:32]} Rc8 {[%emt 0:04:35]} 16. Ne5 {[%emt 0:00:06]} Nxc3 {[%emt 0:00:34]} 17. bxc3 {[%emt 0:00:02]} Ne4 {[%emt 0:00:09]} 18. Qe3 {[%emt 0:00:33]} b5 {[%emt 0:01:15]} 19. axb5 {[%emt 0:00:20]} axb5 {[%emt 0:00:01]} 20. f4 {[%emt 0:04:22]} Bd5 {[%emt 0:01:40]} 21. Bxd5 {[%emt 0:03:52]} exd5 {[%emt 0:00:23]} 22. Be1 {[%emt 0:00:13]} f6 {[%emt 0:00:15]} 23. Nf3 {[%emt 0:00:19]} Re8 {[%emt 0:00:07]} 24. Qd3 {[%emt 0:00:12]} Qd7 {[%emt 0:00:39]} 25. Rb1 {[%emt 0:01:09]} Nd6 {[%emt 0:00:59]} 26. Nd2 {[%emt 0:01:21]} Bd8 {[%emt 0:00:05]} 27. Nb3 {[%emt 0:00:06]} Bb6 {[%emt 0:00:20]} 28. Bf2 {[%emt 0:00:33]} Ne4 {[%emt 0:00:24]} 29. Nc5 {[%emt 0:01:07]} Bxc5 {[%emt 0:00:06]} 30. dxc5 {[%emt 0:00:01]} Nxf2 {[%emt 0:00:06]} 31. Rxf2 {[%emt 0:00:03]} Rxc5 {[%emt 0:00:02]} 32. Rfb2 {[%emt 0:00:02]} Rb8 {[%emt 0:00:26]} 33. Rd1 {[%emt 0:01:40]} Qc6 {[%emt 0:00:40]} 34. Rb3 {[%emt 0:00:05]} Rd8 {[%emt 0:00:12]} 35. Rdb1 {[%emt 0:00:02]} Rb8 {[%emt 0:00:22]} 36. f5 {[%emt 0:00:05]} h6 {[%emt 0:00:05]} 37. Re1 {[%emt 0:00:06]} Re8 {[%emt 0:00:35]} 38. Reb1 {[%emt 0:00:03]} d4 {[%emt 0:00:21]} 39. Qxd4 {[%emt 0:00:16]} Re2 {[%emt 0:00:35]} 40. Qg4 {[%emt 0:00:06]} Rce5 {[%emt 0:00:02]} 41. Rd1 {[%emt 0:00:35]} Qb6+ {[%emt 0:00:25]} 42. Qd4 {[%emt 0:00:12]} Qxd4+ {[%emt 0:00:16]} 43. cxd4 {[%emt 0:00:01]} Rxf5 {[%emt 0:00:10]} 44. d5 {[%emt 0:00:04]} Rff2 {[%emt 0:00:07]} 45. d6 {[%emt 0:00:38]} Rxg2+ {[%emt 0:00:02]} 46. Kf1 {[%emt 0:00:07]} Ref2+ {[%emt 0:00:18]} 47. Ke1 {[%emt 0:00:01]} Re2+ {[%emt 0:00:12]} 48. Kf1 {[%emt 0:00:01]} Ref2+ {[%emt 0:00:09]} 49. Ke1 {[%emt 0:00:01]} Ra2 {[%emt 0:00:05]} 50. d7 {[%emt 0:00:11]} Rg1# {[%emt 0:00:03]} 0-1

[Event "Pashayeva Memorial Rapid 2025"]
[Site "Baku"]
[Date "2025.03.02"]
[Round "3.3"]
[White "Beydullayeva, Govhar"]
[Black "Mamedjarova, Turkan"]
[Result "1-0"]
[Annotator "ChessBase"]
[ECO "D36"]
[WhiteElo "2404"]
[BlackElo "2197"]
[PlyCount "119"]
[EventDate "2025.03.01"]
[EventType "tourn"]
[EventCountry "AZE"]
[SourceTitle "playchess.com"]
[Source "ChessBase"]
[SourceQuality "1"]
[TimeControl "900+10"]

1. d4 {[%emt 0:00:01]} d5 {[%emt 0:00:03]} 2. c4 {[%emt 0:00:01]} e6 {[%emt 0:00:02]} 3. Nc3 {[%emt 0:00:01]} Nf6 {[%emt 0:00:01]} 4. cxd5 {[%emt 0:00:01]} exd5 {[%emt 0:00:01]} 5. Bg5 {[%emt 0:00:01]} c6 {[%emt 0:00:03]} 6. e3 {[%emt 0:00:02]} Be7 {[%emt 0:00:03]} 7. Bd3 {[%emt 0:00:08]} O-O {[%emt 0:00:06]} 8. Qc2 {[%emt 0:00:48]} Nbd7 {[%emt 0:00:06]} 9. Nf3 {[%emt 0:00:16]} Re8 {[%emt 0:00:26]} 10. O-O {[%emt 0:00:25]} g6 {[%emt 0:00:25]} 11. Bf4 {[%emt 0:01:35]} Nf8 {[%emt 0:00:13]} 12. h3 {[%emt 0:00:01]} Ne6 {[%emt 0:00:15]} 13. Bg3 {[%emt 0:00:50]} Ng7 {[%emt 0:00:22]} 14. Ne5 {[%emt 0:00:19]} Bf5 {[%emt 0:01:13]} 15. f3 {[%emt 0:02:57]} Bxd3 {[%emt 0:00:28]} 16. Qxd3 {[%emt 0:00:43]} Bd6 {[%emt 0:00:30]} 17. f4 {[%emt 0:00:24]} Nf5 {[%emt 0:00:53]} 18. Bf2 {[%emt 0:00:04]} c5 {[%emt 0:00:26]} 19. g4 {[%emt 0:00:20]} c4 {[%emt 0:01:19]} 20. Qd1 {[%emt 0:01:06]} Ng7 {[%emt 0:00:31]} 21. Qf3 {[%emt 0:01:15]} Be7 {[%emt 0:02:03]} 22. g5 {[%emt 0:00:12]} Ne4 {[%emt 0:00:12]} 23. Nxe4 {[%emt 0:00:03]} dxe4 {[%emt 0:00:01]} 24. Qxe4 {[%emt 0:00:01]} Qc8 {[%emt 0:01:49]} 25. Kh2 {[%emt 0:00:49]} Bd6 {[%emt 0:00:04]} 26. Rac1 {[%emt 0:01:15]} Bxe5 {[%emt 0:00:16]} 27. fxe5 {[%emt 0:00:12]} Qe6 {[%emt 0:00:43]} 28. Qf3 {[%emt 0:00:52]} Rad8 {[%emt 0:00:31]} 29. e4 {[%emt 0:00:01]} b5 {[%emt 0:00:13]} 30. Rcd1 {[%emt 0:00:18]} b4 {[%emt 0:00:30]} 31. Bg3 {[%emt 0:00:19]} Qe7 {[%emt 0:00:56]} 32. d5 {[%emt 0:00:51]} c3 {[%emt 0:00:34]} 33. bxc3 {[%emt 0:00:42]} bxc3 {[%emt 0:00:04]} 34. Rc1 {[%emt 0:01:04]} Nh5 {[%emt 0:00:57]} 35. Rxc3 {[%emt 0:00:06]} Qxg5 {[%emt 0:00:02]} 36. Qxf7+ {[%emt 0:01:46]} Kh8 {[%emt 0:04:49]} 37. Qf2 {[%emt 0:00:26]} Kg8 {[%emt 0:00:00]} 38. Qf7+ {[%emt 0:00:02]} Kh8 {[%emt 0:00:00]} 39. Qf2 {[%emt 0:00:01]} Kg8 {[%emt 0:00:00]} 40. e6 {[%emt 0:00:20]} Rc8 {[%emt 0:00:00]} 41. Rxc8 {[%emt 0:01:04]} Rxc8 {[%emt 0:00:00]} 42. d6 {[%emt 0:00:13]} Nxg3 {[%emt 0:00:00]} 43. Qxg3 {[%emt 0:00:01]} Rc2+ {[%emt 0:00:00]} 44. Rf2 {[%emt 0:00:01]} Rxf2+ {[%emt 0:00:00]} 45. Qxf2 {[%emt 0:00:01]} Qe5+ {[%emt 0:00:00]} 46. Kg1 {[%emt 0:00:36]} Qxe6 {[%emt 0:00:19]} 47. Qd4 {[%emt 0:00:06]} Qxh3 {[%emt 0:00:49]} 48. Qd5+ {[%emt 0:00:16]} Kf8 {[%emt 0:00:17]} 49. d7 {[%emt 0:00:01]} Qg3+ {[%emt 0:00:08]} 50. Kf1 {[%emt 0:00:00]} Qf3+ {[%emt 0:00:05]} 51. Ke1 {[%emt 0:00:01]} Qh1+ {[%emt 0:00:07]} 52. Kd2 {[%emt 0:00:04]} Qh2+ {[%emt 0:00:04]} 53. Kd3 {[%emt 0:00:27]} Qg3+ {[%emt 0:00:01]} 54. Kd4 {[%emt 0:00:11]} Qf2+ {[%emt 0:00:12]} 55. Ke5 {[%emt 0:00:04]} Qg3+ {[%emt 0:00:20]} 56. Ke6 {[%emt 0:00:07]} Qh3+ {[%emt 0:00:11]} 57. Kd6 {[%emt 0:00:03]} Qa3+ {[%emt 0:00:11]} 58. Qc5 {[%emt 0:00:37]} Qa6+ {[%emt 0:00:20]} 59. Kc7+ {[%emt 0:00:06]} Kf7 {[%emt 0:00:02]} 60. d8=Q {[%emt 0:00:02]} 1-0

[Event "Pashayeva Memorial Rapid 2025"]
[Site "Baku"]
[Date "2025.03.02"]
[Round "3.4"]
[White "Mammadzada, Gunay"]
[Black "Aydin, Gulenay"]
[Result "1/2-1/2"]
[Annotator "ChessBase"]
[ECO "E11"]
[WhiteElo "2412"]
[BlackElo "2265"]
[PlyCount "31"]
[EventDate "2025.03.01"]
[EventType "tourn"]
[EventCountry "AZE"]
[SourceTitle "playchess.com"]
[Source "ChessBase"]
[SourceQuality "1"]
[TimeControl "900+10"]

1. Nf3 {[%emt 0:00:08]} Nf6 {[%emt 0:00:30]} 2. d4 {[%emt 0:00:05]} d5 {[%emt 0:00:09]} 3. c4 {[%emt 0:00:09]} e6 {[%emt 0:00:02]} 4. g3 {[%emt 0:00:02]} Be7 {[%emt 0:00:16]} 5. Bg2 {[%emt 0:00:08]} O-O {[%emt 0:00:03]} 6. O-O {[%emt 0:00:20]} c6 {[%emt 0:00:07]} 7. Qc2 {[%emt 0:00:03]} b6 {[%emt 0:00:38]} 8. Bf4 {[%emt 0:00:05]} Nh5 {[%emt 0:03:13]} 9. Bd2 {[%emt 0:02:33]} Nf6 {[%emt 0:02:30]} 10. Ne5 {[%emt 0:00:42]} Nfd7 {[%emt 0:01:53]} 11. Nxd7 {[%emt 0:03:09]} Nxd7 {[%emt 0:00:07]} 12. e4 {[%emt 0:00:12]} dxc4 {[%emt 0:03:09]} 13. Qxc4 {[%emt 0:00:13]} c5 {[%emt 0:01:02]} 14. e5 {[%emt 0:04:23]} Rb8 {[%emt 0:00:10]} 15. Be3 {[%emt 0:00:55]} cxd4 {[%emt 0:01:51]} 16. Bxd4 {[%emt 0:00:29]} 1/2-1/2

[Event "Pashayeva Memorial Rapid 2025"]
[Site "Baku"]
[Date "2025.03.02"]
[Round "3.5"]
[White "Yakubbaeva, Nilufar"]
[Black "Fataliyeva, Ulviyya"]
[Result "0-1"]
[Annotator "ChessBase"]
[ECO "D37"]
[WhiteElo "2187"]
[BlackElo "2381"]
[PlyCount "112"]
[EventDate "2025.03.01"]
[EventType "tourn"]
[EventCountry "AZE"]
[SourceTitle "playchess.com"]
[Source "ChessBase"]
[SourceQuality "1"]
[TimeControl "900+10"]

1. d4 {[%emt 0:00:04]} Nf6 {[%emt 0:00:02]} 2. Nf3 {[%emt 0:00:04]} d5 {[%emt 0:00:02]} 3. c4 {[%emt 0:00:01]} e6 {[%emt 0:00:02]} 4. Nc3 {[%emt 0:00:02]} Be7 {[%emt 0:00:01]} 5. e3 {[%emt 0:00:06]} O-O {[%emt 0:00:10]} 6. Be2 {[%emt 0:00:08]} dxc4 {[%emt 0:00:03]} 7. Bxc4 {[%emt 0:00:02]} a6 {[%emt 0:00:01]} 8. Bd3 {[%emt 0:00:10]} c5 {[%emt 0:00:10]} 9. dxc5 {[%emt 0:00:25]} Bxc5 {[%emt 0:00:14]} 10. O-O {[%emt 0:00:03]} Nc6 {[%emt 0:00:07]} 11. b3 {[%emt 0:00:36]} e5 {[%emt 0:00:41]} 12. Bb2 {[%emt 0:01:48]} Qe7 {[%emt 0:00:24]} 13. Ne4 {[%emt 0:01:28]} Nxe4 {[%emt 0:04:28]} 14. Bxe4 {[%emt 0:00:03]} Bd6 {[%emt 0:00:10]} 15. Rc1 {[%emt 0:01:49]} Bg4 {[%emt 0:00:37]} 16. h3 {[%emt 0:01:01]} Bd7 {[%emt 0:00:33]} 17. Qe2 {[%emt 0:01:51]} Kh8 {[%emt 0:00:48]} 18. Rfd1 {[%emt 0:00:14]} f5 {[%emt 0:00:24]} 19. Bb1 {[%emt 0:00:30]} e4 {[%emt 0:00:18]} 20. Nd2 {[%emt 0:00:04]} Ne5 {[%emt 0:00:10]} 21. Nc4 {[%emt 0:01:49]} Bb5 {[%emt 0:00:14]} 22. Qd2 {[%emt 0:00:22]} Bb4 {[%emt 0:00:01]} 23. Qd4 {[%emt 0:00:14]} Nc6 {[%emt 0:00:34]} 24. Qd7 {[%emt 0:00:30]} Rad8 {[%emt 0:00:53]} 25. Qxe7 {[%emt 0:00:03]} Bxe7 {[%emt 0:00:03]} 26. Ne5 {[%emt 0:00:57]} Nxe5 {[%emt 0:01:51]} 27. Bxe5 {[%emt 0:00:02]} Ba3 {[%emt 0:01:10]} 28. Rxd8 {[%emt 0:00:46]} Rxd8 {[%emt 0:00:02]} 29. Rc7 {[%emt 0:00:47]} Rd1+ {[%emt 0:00:21]} 30. Kh2 {[%emt 0:00:01]} Kg8 {[%emt 0:00:01]} 31. Bc2 {[%emt 0:00:24]} Rc1 {[%emt 0:00:02]} 32. b4 {[%emt 0:00:11]} Kf8 {[%emt 0:01:05]} 33. Bxg7+ {[%emt 0:01:38]} Ke8 {[%emt 0:00:00]} 34. Be5 {[%emt 0:00:05]} Kd8 {[%emt 0:00:03]} 35. Rc5 {[%emt 0:00:53]} Bxb4 {[%emt 0:01:20]} 36. Rd5+ {[%emt 0:00:03]} Ke7 {[%emt 0:00:28]} 37. Bb3 {[%emt 0:00:02]} Bc6 {[%emt 0:00:38]} 38. Rd4 {[%emt 0:00:28]} Bc3 {[%emt 0:01:24]} 39. Bd6+ {[%emt 0:00:31]} Kd7 {[%emt 0:00:27]} 40. Ba3+ {[%emt 0:00:02]} Bxd4 {[%emt 0:00:02]} 41. Bxc1 {[%emt 0:00:01]} Be5+ {[%emt 0:00:00]} 42. Kg1 {[%emt 0:00:12]} a5 {[%emt 0:00:02]} 43. Kf1 {[%emt 0:00:21]} a4 {[%emt 0:00:01]} 44. Bg8 {[%emt 0:00:02]} h6 {[%emt 0:00:20]} 45. g4 {[%emt 0:00:40]} fxg4 {[%emt 0:00:18]} 46. hxg4 {[%emt 0:00:02]} b5 {[%emt 0:00:04]} 47. Ke1 {[%emt 0:00:31]} b4 {[%emt 0:00:17]} 48. Bd2 {[%emt 0:00:06]} Bd6 {[%emt 0:00:49]} 49. Kd1 {[%emt 0:00:32]} Ke7 {[%emt 0:00:01]} 50. Kc2 {[%emt 0:00:23]} Kf6 {[%emt 0:00:19]} 51. Bc4 {[%emt 0:00:19]} Bd7 {[%emt 0:00:06]} 52. Bd5 {[%emt 0:00:03]} Ke5 {[%emt 0:00:05]} 53. Bb7 {[%emt 0:00:04]} Bxg4 {[%emt 0:00:12]} 54. Bc6 {[%emt 0:00:01]} a3 {[%emt 0:00:07]} 55. Ba4 {[%emt 0:00:13]} h5 {[%emt 0:00:06]} 56. Kb3 {[%emt 0:00:20]} Be6+ {[%emt 0:00:05]} 0-1